fUSD/lending_fUSD_20240612
["ID","MTS","AMOUNT","RATE_DAILY","PERIOD"]
[329269207,1718206261564,-1252.22,0.00020958,2]
[329269208,1718206261575,-1516.46,0.00020958,2]
[329269209,1718206261584,-903.64,0.00020958,2]
[329269210,1718206261595,-1342.81,0.00020958,2]
[329269211,1718206261606,-1142.39,0.00020958,2]
[329269212,1718206261616,-500.0,0.00020958,2]
[329269213,1718206261626,-1167.35,0.00020958,2]
[329269214,1718206261637,-925.38,0.00020958,2]
[329269215,1718206261648,-663.03,0.00020958,2]
[329269216,1718206261660,-586.03,0.00020958,2]
[329269217,1718206261671,-1063.95,0.00020958,2]
[329269218,1718206261682,-533.15,0.00020958,2]
[329269219,1718206261692,-1554.2,0.00020958,2]
[329269220,1718206261703,-1263.93,0.00020958,2]
[329269221,1718206261715,-3231.73,0.00020958,2]
[329269222,1718206261725,-1208.09,0.00020958,2]
[329269223,1718206261736,-1621.3,0.00020958,2]
[329269224,1718206261748,-1801.62,0.00020958,2]
[329269225,1718206261758,-500.0,0.00020958,2]
[329269226,1718206261769,-619.05,0.00020958,2]
[329269227,1718206261780,-1653.38,0.00020958,2]
[329269228,1718206261792,-986.03,0.00020958,2]
[329269229,1718206261803,-586.59,0.00020958,2]
[329269230,1718206261816,-500.0,0.00020958,2]
[329269231,1718206261827,-136.19798505,0.00020958,2]
[329269232,1718206261840,-1453.71201495,0.00020958,2]
[329269233,1718206261852,-500.0,0.00020958,2]
[329269234,1718206261863,-1067.35,0.00020958,2]
[329269235,1718206261875,-2078.4,0.00020958,2]
[329269236,1718206261887,-500.0,0.00020958,2]
[329269237,1718206261899,-925.96,0.00020958,2]
[329269238,1718206261911,-208.9,0.00020958,2]
[329269239,1718206261922,-1294.68,0.00020958,2]
[329269240,1718206261951,-500.0,0.00020958,2]
[329269241,1718206261961,-500.0,0.00020958,2]
[329269242,1718206261972,-1233.56,0.00020958,2]
[329269243,1718206261983,-576.45,0.00020958,2]
[329269244,1718206261994,-871.01,0.00020958,2]
[329269245,1718206262005,-520.56,0.00020958,2]
[329269246,1718206262015,-5000.0,0.00021,2]
[329269247,1718206262026,-874.81,0.00021095,2]
[329269248,1718206262036,-512.74,0.00021095,2]
[329269249,1718206262046,-500.0,0.00021095,2]
[329269250,1718206262057,-1247.07,0.00021095,2]
[329269251,1718206262069,-846.21,0.00021095,2]
[329269252,1718206262079,-1498.42,0.00021095,2]
[329269253,1718206262089,-1261.61,0.00021095,2]
[329269254,1718206262100,-1464.38,0.00021095,2]
[329269255,1718206262110,-1547.12,0.00021095,2]
[329269256,1718206262121,-660.25,0.00021095,2]
[329269257,1718206262132,-1087.66,0.00021095,2]
[329269258,1718206262142,-500.0,0.00021095,2]
[329269259,1718206262153,-3867.83,0.00021095,2]
[329269260,1718206262163,-500.0,0.00021095,2]
[329269261,1718206262174,-1045.39,0.00021095,2]
[329269262,1718206262184,-1160.12,0.00021095,2]
[329269263,1718206262194,-500.0,0.00021095,2]
[329269264,1718206262205,-578.2,0.00021095,2]
[329269265,1718206262215,-1477.65,0.00021095,2]
[329269266,1718206262225,-500.0,0.00021095,2]
[329269267,1718206262235,-865.32,0.00021095,2]
[329269268,1718206262248,-659.79,0.00021095,2]
[329269269,1718206262258,-561.2,0.00021095,2]
[329269270,1718206262268,-674.05,0.00021095,2]
[329269271,1718206262280,-2467.36,0.00021095,2]
[329269272,1718206262292,-1252.22,0.00021095,2]
[329269273,1718206262302,-1516.46,0.00021095,2]
[329269274,1718206262314,-903.64,0.00021095,2]
[329269275,1718206262325,-1342.81,0.00021095,2]
[329269276,1718206262335,-1142.39,0.00021095,2]
[329269277,1718206262346,-500.0,0.00021095,2]
[329269278,1718206262358,-1167.35,0.00021095,2]
[329269279,1718206262369,-925.38,0.00021095,2]
[329269280,1718206262380,-663.03,0.00021095,2]
[329269281,1718206262392,-586.03,0.00021095,2]
[329269282,1718206262403,-1063.95,0.00021095,2]
[329269283,1718206262414,-533.15,0.00021095,2]
[329269284,1718206262425,-1554.2,0.00021095,2]
[329269285,1718206262445,-1263.93,0.00021095,2]
[329269286,1718206262463,-3231.73,0.00021095,2]
[329269287,1718206262481,-1208.09,0.00021095,2]
[329269288,1718206262495,-1621.3,0.00021095,2]
[329269289,1718206262510,-1801.62,0.00021095,2]
[329269290,1718206262527,-500.0,0.00021095,2]
[329269291,1718206262543,-619.05,0.00021095,2]
[329269292,1718206262561,-1653.38,0.00021095,2]
[329269293,1718206262576,-986.03,0.00021095,2]
[329269294,1718206262592,-586.59,0.00021095,2]
[329269295,1718206262609,-500.0,0.00021095,2]
[329269296,1718206262630,-1589.91,0.00021095,2]
[329269297,1718206262647,-500.0,0.00021095,2]
[329269298,1718206262666,-1067.35,0.00021095,2]
[329269299,1718206262682,-2078.4,0.00021095,2]
[329269300,1718206262704,-500.0,0.00021095,2]
[329269301,1718206262718,-925.96,0.00021095,2]
[329269302,1718206262744,-1294.68,0.00021095,2]
[329269303,1718206262765,-500.0,0.00021095,2]
[329269304,1718206262780,-500.0,0.00021095,2]
[329269305,1718206262792,-1233.56,0.00021095,2]
[329269306,1718206262805,-576.45,0.00021095,2]
[329269307,1718206262821,-871.01,0.00021095,2]
[329269308,1718206262835,-520.56,0.00021095,2]
[329269309,1718206262861,-480.13,0.00021171,2]
[329269310,1718206262875,-1320.997218,0.00021189,2]
[329269311,1718206262896,-2569.10104,0.00021189,2]
[329269312,1718206262913,-3265.694796,0.00021189,2]
[329269313,1718206262933,-2058.05239766,0.000212,2]
[329269314,1718206262963,-874.81,0.00021232,2]
[329269315,1718206262976,-512.74,0.00021232,2]
[329269316,1718206262989,-500.0,0.00021232,2]
[329269317,1718206263001,-1247.07,0.00021232,2]
[329269318,1718206263014,-846.21,0.00021232,2]
[329269319,1718206263028,-1498.42,0.00021232,2]
[329269320,1718206263046,-1261.61,0.00021232,2]
[329269321,1718206263067,-1464.38,0.00021232,2]
[329269322,1718206263080,-1547.12,0.00021232,2]
[329269323,1718206263097,-660.25,0.00021232,2]
[329269324,1718206263112,-1087.66,0.00021232,2]
[329269325,1718206263127,-500.0,0.00021232,2]
[329269326,1718206263141,-3867.83,0.00021232,2]
[329269327,1718206263157,-500.0,0.00021232,2]
[329269328,1718206263174,-1045.39,0.00021232,2]
[329269329,1718206263186,-1160.12,0.00021232,2]
[329269330,1718206263203,-521.68,0.00021232,2]
[329269331,1718206263218,-578.2,0.00021232,2]
[329269332,1718206263260,-1477.65,0.00021232,2]
[329269333,1718206263288,-500.0,0.00021232,2]
[329269334,1718206263303,-865.32,0.00021232,2]
[329269335,1718206263317,-659.79,0.00021232,2]
[329269336,1718206263331,-561.2,0.00021232,2]
[329269337,1718206263345,-674.05,0.00021232,2]
[329269338,1718206263361,-2467.36,0.00021232,2]
[329269339,1718206263375,-1252.22,0.00021232,2]
[329269340,1718206263389,-1516.46,0.00021232,2]
[329269341,1718206263403,-903.64,0.00021232,2]
[329269342,1718206263417,-1342.81,0.00021232,2]
[329269343,1718206263440,-1142.39,0.00021232,2]
[329269344,1718206263454,-500.0,0.00021232,2]
[329269345,1718206263470,-1167.35,0.00021232,2]
[329269346,1718206263484,-925.38,0.00021232,2]
[329269347,1718206263500,-663.03,0.00021232,2]
[329269348,1718206263512,-586.03,0.00021232,2]
[329269349,1718206263533,-1063.95,0.00021232,2]
[329269350,1718206263548,-533.15,0.00021232,2]
[329269351,1718206263561,-1554.2,0.00021232,2]
[329269352,1718206263574,-1263.93,0.00021232,2]
[329269353,1718206263588,-3231.73,0.00021232,2]
[329269354,1718206263602,-1208.09,0.00021232,2]
[329269355,1718206263620,-1621.3,0.00021232,2]
[329269356,1718206263634,-1801.62,0.00021232,2]
[329269357,1718206263649,-500.0,0.00021232,2]
[329269358,1718206263663,-619.05,0.00021232,2]
[329269359,1718206263677,-1653.38,0.00021232,2]
[329269360,1718206263691,-986.03,0.00021232,2]
[329269361,1718206263703,-123.07406633,0.00021232,2]
[329269362,1718206263723,-463.51593367,0.00021232,2]
[329269363,1718206263737,-500.0,0.00021232,2]
[329269364,1718206263749,-1589.91,0.00021232,2]
[329269365,1718206263763,-500.0,0.00021232,2]
[329269366,1718206263776,-28.11156944,0.00021232,2]
[329269367,1718206263792,-310.44812034,0.00021232,2]
[329269368,1718206264095,-728.79031022,0.00021232,2]
[329269369,1718206264107,-1137.79952133,0.00021232,2]
[329269370,1718206264122,-503.4787228,0.00021232,2]
[329269371,1718206264137,-437.12175587,0.00021232,2]
[329269372,1718206264148,-500.0,0.00021232,2]
[329269373,1718206264161,-925.96,0.00021232,2]
[329269374,1718206264173,-433.33917527,0.00021232,2]
[329269375,1718206264355,-500.0,0.00019178,2]
[329269376,1718206264367,-500.0,0.00019178,2]
[329269377,1718206264378,-500.0,0.00019178,2]
[329269378,1718206264390,-861.34082473,0.00021232,2]
[329269379,1718206264401,-500.0,0.00021232,2]
[329269380,1718206264413,-500.0,0.00021232,2]
[329269381,1718206264425,-1233.56,0.00021232,2]
[329269382,1718206264437,-576.45,0.00021232,2]
[329269383,1718206264448,-871.01,0.00021232,2]
[329269384,1718206264460,-520.56,0.00021232,2]
[329269385,1718206264471,-8260.91817298,0.00021306,2]
[329269386,1718206264482,-874.81,0.00021369,2]
[329269387,1718206264493,-512.74,0.00021369,2]
[329269388,1718206264528,-500.0,0.00021369,2]
[329269389,1718206264540,-1247.07,0.00021369,2]
[329269390,1718206264551,-846.21,0.00021369,2]
[329269391,1718206264564,-1498.42,0.00021369,2]
[329269392,1718206264594,-1261.61,0.00021369,2]
[329269393,1718206264616,-1464.38,0.00021369,2]
[329269394,1718206264630,-660.25,0.00021369,2]
[329269395,1718206264641,-1087.66,0.00021369,2]
[329269396,1718206264652,-500.0,0.00021369,2]
[329269397,1718206264667,-3867.83,0.00021369,2]
[329269398,1718206264680,-500.0,0.00021369,2]
[329269399,1718206264692,-1045.39,0.00021369,2]
[329269400,1718206264709,-1160.12,0.00021369,2]
[329269401,1718206264721,-578.2,0.00021369,2]
[329269402,1718206264733,-1477.65,0.00021369,2]
[329269403,1718206264746,-500.0,0.00021369,2]
[329269404,1718206264756,-865.32,0.00021369,2]
[329269405,1718206264767,-659.79,0.00021369,2]
[329269406,1718206265072,-561.2,0.00021369,2]
[329269407,1718206265106,-674.05,0.00021369,2]
[329269408,1718206265130,-2467.36,0.00021369,2]
[329269409,1718206265145,-1252.22,0.00021369,2]
[329269410,1718206265157,-1516.46,0.00021369,2]
[329269411,1718206265170,-903.64,0.00021369,2]
[329269412,1718206265183,-1342.81,0.00021369,2]
[329269413,1718206265194,-1142.39,0.00021369,2]
[329269414,1718206265206,-500.0,0.00021369,2]
[329269415,1718206265218,-1167.35,0.00021369,2]
[329269416,1718206265229,-925.38,0.00021369,2]
[329269417,1718206265241,-663.03,0.00021369,2]
[329269418,1718206265251,-586.03,0.00021369,2]
[329269419,1718206265265,-1063.95,0.00021369,2]
[329269420,1718206265277,-533.15,0.00021369,2]
[329269421,1718206265288,-1554.2,0.00021369,2]
[329269422,1718206265298,-1263.93,0.00021369,2]
[329269423,1718206265310,-3231.73,0.00021369,2]
[329269424,1718206265321,-1208.09,0.00021369,2]
[329269425,1718206265331,-1621.3,0.00021369,2]
[329269426,1718206265344,-1801.62,0.00021369,2]
[329269427,1718206265355,-500.0,0.00021369,2]
[329269428,1718206265366,-619.05,0.00021369,2]
[329269429,1718206265379,-1653.38,0.00021369,2]
[329269430,1718206265390,-986.03,0.00021369,2]
[329269431,1718206265401,-586.59,0.00021369,2]
[329269432,1718206265411,-500.0,0.00021369,2]
[329269433,1718206265422,-1589.91,0.00021369,2]
[329269434,1718206265432,-500.0,0.00021369,2]
[329269435,1718206265443,-1067.35,0.00021369,2]
[329269436,1718206265455,-2078.4,0.00021369,2]
[329269437,1718206265465,-500.0,0.00021369,2]
[329269438,1718206265476,-925.96,0.00021369,2]
[329269439,1718206265486,-1294.68,0.00021369,2]
[329269440,1718206265497,-500.0,0.00021369,2]
[329269441,1718206265508,-500.0,0.00021369,2]
[329269442,1718206265519,-1233.56,0.00021369,2]
[329269443,1718206265530,-576.45,0.00021369,2]
[329269444,1718206265541,-871.01,0.00021369,2]
[329269445,1718206265552,-520.56,0.00021369,2]
[329269446,1718206265563,-1320.997218,0.00021451,2]
[329269447,1718206265573,-2569.10104,0.00021451,2]
[329269448,1718206265584,-3265.694796,0.00021451,2]
[329269449,1718206265594,-276.37056141,0.00021491,2]
[329269450,1718206265605,-1606.0,0.000215,2]
[329269451,1718206265615,-583.0,0.000215,2]
[329269452,1718206265625,-282.0,0.00021505,2]
[329269453,1718206265635,-874.81,0.00021506,2]
[329269454,1718206265646,-512.74,0.00021506,2]
[329269455,1718206265656,-315.51802628,0.00021506,2]
[329269456,1718206265666,-1247.07,0.00021506,2]
[329269457,1718206265676,-846.21,0.00021506,2]
[329269458,1718206265687,-1498.42,0.00021506,2]
[329269459,1718206265698,-1261.61,0.00021506,2]
[329269460,1718206265710,-1464.38,0.00021506,2]
[329269461,1718206265721,-660.25,0.00021506,2]
[329269462,1718206265732,-1087.66,0.00021506,2]
[329269463,1718206265742,-500.0,0.00021506,2]
[329269464,1718206265753,-3867.83,0.00021506,2]
[329269465,1718206265762,-305.18,0.00021506,2]
[329269466,1718206265773,-1045.39,0.00021506,2]
[329269467,1718206265784,-1160.12,0.00021506,2]
[329269468,1718206265795,-578.2,0.00021506,2]
[329269469,1718206265807,-1477.65,0.00021506,2]
[329269470,1718206265820,-500.0,0.00021506,2]
[329269471,1718206265832,-659.79,0.00021506,2]
[329269472,1718206265843,-865.32,0.00021506,2]
[329269473,1718206265862,-561.2,0.00021506,2]
[329269474,1718206265878,-674.05,0.00021506,2]
[329269475,1718206265894,-2467.36,0.00021506,2]
[329269476,1718206265905,-1252.22,0.00021506,2]
[329269477,1718206265917,-1516.46,0.00021506,2]
[329269478,1718206265946,-903.64,0.00021506,2]
[329269479,1718206265959,-1342.81,0.00021506,2]
[329269480,1718206265971,-1142.39,0.00021506,2]
[329269481,1718206265982,-500.0,0.00021506,2]
[329269482,1718206265994,-1167.35,0.00021506,2]
[329269483,1718206266005,-925.38,0.00021506,2]
[329269484,1718206266017,-663.03,0.00021506,2]
[329269485,1718206266028,-586.03,0.00021506,2]
[329269486,1718206266038,-1063.95,0.00021506,2]
[329269487,1718206266048,-533.15,0.00021506,2]
[329269488,1718206266058,-1554.2,0.00021506,2]
[329269489,1718206266069,-1263.93,0.00021506,2]
[329269490,1718206266082,-3231.73,0.00021506,2]
[329269491,1718206266092,-1208.09,0.00021506,2]
[329269492,1718206266103,-1621.3,0.00021506,2]
[329269493,1718206266116,-1801.62,0.00021506,2]
[329269494,1718206266127,-500.0,0.00021506,2]
[329269495,1718206266138,-619.05,0.00021506,2]
[329269496,1718206266149,-1653.38,0.00021506,2]
[329269497,1718206266159,-986.03,0.00021506,2]
[329269498,1718206266171,-586.59,0.00021506,2]
[329269499,1718206266182,-500.0,0.00021506,2]
[329269500,1718206266193,-1589.91,0.00021506,2]
[329269501,1718206266203,-500.0,0.00021506,2]
[329269502,1718206266214,-1067.35,0.00021506,2]
[329269503,1718206266226,-2078.4,0.00021506,2]
[329269504,1718206266238,-500.0,0.00021506,2]
[329269505,1718206266249,-925.96,0.00021506,2]
[329269506,1718206266260,-1294.68,0.00021506,2]
[329269507,1718206266272,-500.0,0.00021506,2]
[329269508,1718206266282,-500.0,0.00021506,2]
[329269509,1718206266293,-1233.56,0.00021506,2]
[329269510,1718206266304,-576.45,0.00021506,2]
[329269511,1718206266315,-871.01,0.00021506,2]
[329269512,1718206266325,-520.56,0.00021506,2]
[329269513,1718206266336,-874.81,0.00021643,2]
[329269514,1718206266348,-512.74,0.00021643,2]
[329269515,1718206266358,-1247.07,0.00021643,2]
[329269516,1718206266367,-846.21,0.00021643,2]
[329269517,1718206266379,-1498.42,0.00021643,2]
[329269518,1718206266389,-1261.61,0.00021643,2]
[329269519,1718206266400,-1464.38,0.00021643,2]
[329269520,1718206266412,-660.25,0.00021643,2]
[329269521,1718206266424,-1087.66,0.00021643,2]
[329269522,1718206266434,-500.0,0.00021643,2]
[329269523,1718206266445,-3867.83,0.00021643,2]
[329269524,1718206266454,-1045.39,0.00021643,2]
[329269525,1718206266466,-1160.12,0.00021643,2]
[329269526,1718206266478,-578.2,0.00021643,2]
[329269527,1718206266489,-1477.65,0.00021643,2]
[329269528,1718206266500,-500.0,0.00021643,2]
[329269529,1718206266511,-865.32,0.00021643,2]
[329269530,1718206266523,-659.79,0.00021643,2]
[329269531,1718206266534,-561.2,0.00021643,2]
[329269532,1718206266544,-674.05,0.00021643,2]
[329269533,1718206266555,-2467.36,0.00021643,2]
[329269534,1718206266566,-1252.22,0.00021643,2]
[329269535,1718206266577,-1516.46,0.00021643,2]
[329269536,1718206266589,-903.64,0.00021643,2]
[329269537,1718206266601,-1342.81,0.00021643,2]
[329269538,1718206266612,-1142.39,0.00021643,2]
[329269539,1718206266623,-500.0,0.00021643,2]
[329269540,1718206266635,-1167.35,0.00021643,2]
[329269541,1718206266646,-925.38,0.00021643,2]
[329269542,1718206266657,-663.03,0.00021643,2]
[329269543,1718206266667,-586.03,0.00021643,2]
[329269544,1718206266679,-1063.95,0.00021643,2]
[329269545,1718206266689,-533.15,0.00021643,2]
[329269546,1718206266699,-1554.2,0.00021643,2]
[329269547,1718206266709,-1263.93,0.00021643,2]
[329269548,1718206266720,-3231.73,0.00021643,2]
[329269549,1718206266730,-1208.09,0.00021643,2]
[329269550,1718206266740,-1621.3,0.00021643,2]
[329269551,1718206266750,-1801.62,0.00021643,2]
[329269552,1718206266761,-500.0,0.00021643,2]
[329269553,1718206266772,-619.05,0.00021643,2]
[329269554,1718206266782,-1653.38,0.00021643,2]
[329269555,1718206266792,-986.03,0.00021643,2]
[329269556,1718206266802,-586.59,0.00021643,2]
[329269557,1718206266812,-500.0,0.00021643,2]
[329269558,1718206266823,-1589.91,0.00021643,2]
[329269559,1718206266833,-500.0,0.00021643,2]
[329269560,1718206266843,-1067.35,0.00021643,2]
[329269561,1718206266858,-2078.4,0.00021643,2]
[329269562,1718206266868,-475.10432382,0.00021643,2]
[329269563,1718206266878,-925.96,0.00021643,2]
[329269564,1718206266888,-1294.68,0.00021643,2]
[329269565,1718206266899,-500.0,0.00021643,2]
[329269566,1718206266909,-500.0,0.00021643,2]
[329269567,1718206266920,-1233.56,0.00021643,2]
[329269568,1718206266943,-576.45,0.00021643,2]
[329269569,1718206266954,-871.01,0.00021643,2]
[329269570,1718206266965,-520.56,0.00021643,2]
[329269571,1718206266975,-1320.997218,0.00021712,2]
[329269572,1718206266985,-2569.10104,0.00021712,2]
[329269573,1718206266995,-3265.694796,0.00021712,2]
[329269574,1718206267005,-150.5,0.0002175,15]
[329269575,1718206267015,-153.99,0.0002175,15]
[329269576,1718206267028,-150.5,0.0002176,15]
[329269577,1718206267043,-150.5,0.0002176,15]
[329269578,1718206267053,-150.5,0.0002177,15]
[329269579,1718206267064,-874.81,0.0002178,2]
[329269580,1718206267074,-512.74,0.0002178,2]
[329269581,1718206267085,-1247.07,0.0002178,2]
[329269582,1718206267095,-846.21,0.0002178,2]
[329269583,1718206267105,-1498.42,0.0002178,2]
[329269584,1718206267115,-1261.61,0.0002178,2]
[329269585,1718206267126,-1464.38,0.0002178,2]
[329269586,1718206267136,-660.25,0.0002178,2]
[329269587,1718206267147,-1087.66,0.0002178,2]
[329269588,1718206267157,-237.34,0.0002178,2]
[329269589,1718206267168,-3867.83,0.0002178,2]
[329269590,1718206267179,-1045.39,0.0002178,2]
[329269591,1718206267190,-1160.12,0.0002178,2]
[329269592,1718206267201,-578.2,0.0002178,2]
[329269593,1718206267213,-1477.65,0.0002178,2]
[329269594,1718206267226,-500.0,0.0002178,2]
[329269595,1718206267238,-865.32,0.0002178,2]
[329269596,1718206267250,-659.79,0.0002178,2]
[329269597,1718206267261,-561.2,0.0002178,2]
[329269598,1718206267272,-674.05,0.0002178,2]
[329269599,1718206267283,-2467.36,0.0002178,2]
[329269600,1718206267297,-1252.22,0.0002178,2]
[329269601,1718206267309,-1516.46,0.0002178,2]
[329269602,1718206267329,-903.64,0.0002178,2]
[329269603,1718206267345,-1342.81,0.0002178,2]
[329269604,1718206267355,-1142.39,0.0002178,2]
[329269605,1718206267366,-500.0,0.0002178,2]
[329269606,1718206267377,-1167.35,0.0002178,2]
[329269607,1718206267388,-925.38,0.0002178,2]
[329269608,1718206267399,-663.03,0.0002178,2]
[329269609,1718206267409,-586.03,0.0002178,2]
[329269610,1718206267420,-1063.95,0.0002178,2]
[329269611,1718206267430,-533.15,0.0002178,2]
[329269612,1718206267440,-1554.2,0.0002178,2]
[329269613,1718206267451,-1263.93,0.0002178,2]
[329269614,1718206267463,-3231.73,0.0002178,2]
[329269615,1718206267473,-1208.09,0.0002178,2]
[329269616,1718206267484,-1621.3,0.0002178,2]
[329269617,1718206267495,-1801.62,0.0002178,2]
[329269618,1718206267506,-363.0,0.0002178,2]
[329269619,1718206267518,-619.05,0.0002178,2]
[329269620,1718206267529,-1653.38,0.0002178,2]
[329269621,1718206267541,-986.03,0.0002178,2]
[329269622,1718206267551,-586.59,0.0002178,2]
[329269623,1718206267562,-339.15,0.0002178,2]
[329269624,1718206267573,-1589.91,0.0002178,2]
[329269625,1718206267583,-500.0,0.0002178,2]
[329269626,1718206267594,-1067.35,0.0002178,2]
[329269627,1718206267607,-2078.4,0.0002178,2]
[329269628,1718206267619,-925.96,0.0002178,2]
[329269629,1718206267631,-1294.68,0.0002178,2]
[329269630,1718206267641,-500.0,0.0002178,2]
[329269631,1718206267652,-500.0,0.0002178,2]
[329269632,1718206267664,-1233.56,0.0002178,2]
[329269633,1718206267675,-576.45,0.0002178,2]
[329269634,1718206267686,-871.01,0.0002178,2]
[329269635,1718206267696,-520.56,0.0002178,2]
[329269636,1718206267707,-874.81,0.00021917,2]
[329269637,1718206267720,-512.74,0.00021917,2]
[329269638,1718206267730,-1247.07,0.00021917,2]
[329269639,1718206267740,-846.21,0.00021917,2]
[329269640,1718206267753,-1498.42,0.00021917,2]
[329269641,1718206267768,-1261.61,0.00021917,2]
[329269642,1718206267779,-1464.38,0.00021917,2]
[329269643,1718206267797,-660.25,0.00021917,2]
[329269644,1718206267808,-1087.66,0.00021917,2]
[329269645,1718206267819,-3867.83,0.00021917,2]
[329269646,1718206267830,-1045.39,0.00021917,2]
[329269647,1718206267841,-1160.12,0.00021917,2]
[329269648,1718206267853,-578.2,0.00021917,2]
[329269649,1718206267867,-1477.65,0.00021917,2]
[329269650,1718206267877,-500.0,0.00021917,2]
[329269651,1718206267888,-865.32,0.00021917,2]
[329269652,1718206267898,-659.79,0.00021917,2]
[329269653,1718206267910,-561.2,0.00021917,2]
[329269654,1718206267921,-674.05,0.00021917,2]
[329269655,1718206267947,-2467.36,0.00021917,2]
[329269656,1718206267957,-1252.22,0.00021917,2]
[329269657,1718206267969,-1516.46,0.00021917,2]
[329269658,1718206267980,-903.64,0.00021917,2]
[329269659,1718206267992,-1342.81,0.00021917,2]
[329269660,1718206268003,-1142.39,0.00021917,2]
[329269661,1718206268015,-500.0,0.00021917,2]
[329269662,1718206268026,-1167.35,0.00021917,2]
[329269663,1718206268038,-925.38,0.00021917,2]
[329269664,1718206268050,-663.03,0.00021917,2]
[329269665,1718206268062,-586.03,0.00021917,2]
[329269666,1718206268072,-1063.95,0.00021917,2]
[329269667,1718206268084,-533.15,0.00021917,2]
[329269668,1718206268095,-1554.2,0.00021917,2]
[329269669,1718206268107,-1263.93,0.00021917,2]
[329269670,1718206268119,-3231.73,0.00021917,2]
[329269671,1718206268129,-1208.09,0.00021917,2]
[329269672,1718206268140,-1621.3,0.00021917,2]
[329269673,1718206268151,-1801.62,0.00021917,2]
[329269674,1718206268162,-619.05,0.00021917,2]
[329269675,1718206268173,-1653.38,0.00021917,2]
[329269676,1718206268185,-986.03,0.00021917,2]
[329269677,1718206268196,-586.59,0.00021917,2]
[329269678,1718206268207,-1589.91,0.00021917,2]
[329269679,1718206268218,-162.04,0.00021917,2]
[329269680,1718206268228,-1067.35,0.00021917,2]
[329269681,1718206268240,-2078.4,0.00021917,2]
[329269682,1718206268250,-925.96,0.00021917,2]
[329269683,1718206268262,-1294.68,0.00021917,2]
[329269684,1718206268274,-500.0,0.00021917,2]
[329269685,1718206268285,-500.0,0.00021917,2]
[329269686,1718206268296,-1233.56,0.00021917,2]
[329269687,1718206268309,-576.45,0.00021917,2]
[329269688,1718206268320,-871.01,0.00021917,2]
[329269689,1718206268332,-520.56,0.00021917,2]
[329269690,1718206268343,-568.92,0.00021918,2]
[329269691,1718206268353,-250.0,0.00021918,2]
[329269692,1718206268364,-352.05,0.00021918,2]
[329269693,1718206268374,-10000.0,0.00021969,2]
[329269694,1718206268384,-1320.997218,0.00021974,2]
[329269695,1718206268395,-2569.10104,0.00021974,2]
[329269696,1718206268405,-3265.694796,0.00021974,2]
[329269697,1718206268416,-170.384923,0.00021974,2]
[329269698,1718206268428,-190.461819,0.00021974,2]
[329269699,1718206268438,-150.5,0.00022044,15]
[329269700,1718206268449,-334.29552451,0.00022052,2]
[329269701,1718206268459,-649.72311182,0.00022052,2]
[329269702,1718206268470,-1067.92836055,0.00022053,2]
[329269703,1718206268480,-874.81,0.00022054,2]
[329269704,1718206268490,-512.74,0.00022054,2]
[329269705,1718206268501,-1247.07,0.00022054,2]
[329269706,1718206268514,-846.21,0.00022054,2]